bitfinex-derivatives/quotes_BTCF0:USTF0_20210705
["timestamp","ask_amount","ask_price","bid_price","bid_amount"]
[1625450833746,0.08552756,34600.0,34599.0,6.40311031]
[1625450833847,0.08552756,34600.0,34599.0,6.43461031]
[1625450834399,0.17088211,34601.0,34599.0,6.43461031]
[1625450834400,0.25637964,34601.0,34599.0,6.43461031]
[1625450834497,0.25637964,34601.0,34600.0,3.7402]
[1625450834598,0.25637964,34601.0,34600.0,3.80950237]
[1625450834698,0.25637964,34601.0,34600.0,3.88201646]
[1625450834898,0.25637964,34601.0,34600.0,10.38630203]
[1625450835098,0.25637964,34601.0,34600.0,10.41780203]
[1625450835298,0.5123049,34602.0,34600.0,10.41780203]
[1625450835398,0.4925049,34602.0,34600.0,10.41780203]
[1625450835499,0.0674049,34602.0,34601.0,0.01031272]
[1625450835599,0.6556906,34603.0,34601.0,0.06931272]
[1625450835699,0.6556906,34603.0,34601.0,0.12831272]
[1625450835799,0.6556906,34603.0,34601.0,0.14182716]
[1625450835899,0.6556906,34603.0,34602.0,0.01030914]
[1625450835999,0.6556906,34603.0,34602.0,0.12830914]
[1625450836101,0.6556906,34603.0,34602.0,0.14182352]
[1625450836201,0.6556906,34603.0,34602.0,0.57079452]
[1625450836710,1.02403708,34606.0,34602.0,5.65324292]
[1625450836803,1.02403708,34606.0,34603.0,0.01030357]
[1625450836907,1.02403708,34606.0,34605.0,0.48115088]
[1625450837007,1.02403708,34606.0,34605.0,0.87205088]
[1625450837104,1.02403708,34606.0,34605.0,2.22701905]
[1625450837205,1.02356273,34607.0,34605.0,4.42884233]
[1625450837406,1.02356273,34607.0,34605.0,4.44235615]
[1625450837656,1.02356273,34607.0,34606.0,0.0135137]
[1625450837756,1.02357949,34608.0,34606.0,3.68905205]
[1625450838157,1.02357949,34608.0,34607.0,0.00495576]
[1625450838257,1.02357949,34608.0,34607.0,3.6809408]
[1625450838808,1.02316932,34609.0,34607.0,2.32551793]
[1625450838907,1.02316932,34609.0,34608.0,0.24057544]
[1625450839008,1.02316932,34609.0,34608.0,0.35857544]
[1625450839309,1.02316932,34609.0,34608.0,2.5652977]
[1625450839410,1.02316932,34609.0,34608.0,2.5967977]
[1625450840759,1.43423772,34611.0,34608.0,2.5967977]
[1625450840760,1.02280291,34610.0,34608.0,2.5967977]
[1625450841111,1.02280291,34610.0,34609.0,0.00495564]
[1625450841211,1.02280291,34610.0,34609.0,1.13854256]
[1625450841711,1.02280291,34610.0,34609.0,1.17004256]
[1625450843164,1.02253317,34611.0,34609.0,1.17004256]
[1625450843516,1.02253317,34611.0,34610.0,0.00495549]
[1625450843616,1.02253317,34611.0,34610.0,0.12295549]
[1625450843715,1.19323884,34612.0,34610.0,1.13807121]
[1625450844065,1.19323884,34612.0,34611.0,0.00495546]
[1625450844164,1.19323884,34612.0,34611.0,0.06395546]
[1625450844264,1.19323884,34612.0,34611.0,0.12295546]
[1625450844364,2.2155948,34612.0,34611.0,0.12295546]
[1625450844665,2.2155948,34612.0,34611.0,0.15445546]
[1625450844865,2.2155948,34612.0,34611.0,0.3950309]
[1625450846421,2.2155948,34612.0,34611.0,0.2770309]
[1625450846822,3.57859386,34612.0,34611.0,0.2770309]
[1625450846924,4.05974474,34612.0,34611.0,0.03645546]
[1625450848327,5.5933009,34612.0,34611.0,0.03645546]
[1625450848777,5.5933009,34612.0,34611.0,0.00495546]
[1625450849074,5.5933009,34612.0,34608.0,0.00495656]
[1625450849174,5.7976409,34612.0,34608.0,0.00495656]
[1625450849626,3.57868065,34609.0,34608.0,0.00495656]
[1625450850678,3.57868065,34609.0,34608.0,0.03645656]
[1625450850829,3.57868065,34609.0,34608.0,0.09545656]
[1625450850935,3.57868065,34609.0,34608.0,0.03645656]
[1625450851530,3.57868065,34609.0,34608.0,0.09545656]
[1625450851630,3.57868065,34609.0,34608.0,0.43425909]
[1625450851631,2.21539808,34609.0,34608.0,0.43425909]
[1625450851779,2.21539808,34609.0,34608.0,0.37525909]
[1625450851881,2.21539808,34609.0,34608.0,0.43425909]
[1625450853032,2.21539808,34609.0,34608.0,0.09545656]
[1625450853491,2.21539808,34609.0,34608.0,0.43424609]
[1625450853943,2.21539808,34609.0,34608.0,0.09545656]
[1625450855243,2.21539808,34609.0,34608.0,0.15445656]
[1625450855494,2.21539808,34609.0,34608.0,0.16301462]
[1625450856246,2.21539808,34609.0,34608.0,1.17560924]
[1625450856247,1.02250453,34609.0,34608.0,1.17560924]
[1625450858652,1.19288166,34611.0,34608.0,1.17560924]
[1625450858953,1.02242535,34609.0,34608.0,1.40267006]
[1625450859055,1.19288166,34611.0,34608.0,1.40267006]
[1625450859205,1.19288166,34611.0,34608.0,1.41618341]
[1625450859407,1.02242518,34609.0,34608.0,1.41618341]
[1625450859505,1.02242518,34609.0,34608.0,1.40267006]
[1625450859756,1.02242518,34609.0,34608.0,1.41618338]
[1625450861857,1.02242518,34609.0,34608.0,1.35718338]
[1625450862008,1.02242518,34609.0,34608.0,1.41618338]
[1625450862660,1.02242518,34609.0,34608.0,1.35718338]
[1625450862861,1.02242518,34609.0,34608.0,1.29818338]
[1625450862967,2.2154473,34609.0,34608.0,0.28558876]
[1625450863061,2.2154473,34609.0,34608.0,0.34458876]
[1625450863160,2.2154473,34609.0,34608.0,0.28558876]
[1625450863260,2.5294273,34609.0,34608.0,0.28558876]
[1625450863461,2.5294273,34609.0,34608.0,0.62351115]
[1625450864211,3.89305248,34609.0,34608.0,0.62351115]
[1625450864313,3.89305248,34609.0,34608.0,0.61495334]
[1625450866318,3.89305248,34609.0,34608.0,0.27703095]
[1625450866616,3.89305248,34609.0,34608.0,0.03645551]
[1625450867270,5.48656181,34609.0,34608.0,0.03645551]
[1625450867467,5.48656181,34609.0,34608.0,0.00495551]
[1625450867818,5.48656181,34609.0,34606.0,0.00495831]
[1625450868017,5.48656181,34609.0,34608.0,0.00495834]
[1625450868318,5.48656181,34609.0,34605.0,0.00495837]
[1625450868967,3.58116941,34606.0,34605.0,0.00495837]
[1625450869068,3.88074485,34606.0,34605.0,0.00495837]
[1625450870119,3.82174485,34606.0,34605.0,0.00495837]
[1625450870820,3.82174485,34606.0,34605.0,0.06395837]
[1625450873529,3.82174485,34606.0,34605.0,0.40289659]
[1625450873978,3.82174485,34606.0,34605.0,0.39793822]
[1625450874180,3.82174485,34606.0,34605.0,0.059]
[1625450875381,3.82174485,34606.0,34605.0,0.39816009]
[1625450876982,3.88074485,34606.0,34602.0,1.01933256]
[1625450877084,0.48115088,34603.0,34602.0,0.51923256]
[1625450877182,1.28769088,34603.0,34602.0,0.51923256]
[1625450877282,1.34669088,34603.0,34602.0,0.51923256]
[1625450877383,1.34669088,34603.0,34602.0,0.50248506]
[1625450877481,1.28769088,34603.0,34602.0,0.50248506]
[1625450877582,1.34669088,34603.0,34602.0,0.50248506]
[1625450877784,5.81849088,34603.0,34602.0,0.50248506]
[1625450877984,5.81849088,34603.0,34602.0,0.0049525]
[1625450877985,10.93709187,34603.0,34602.0,0.0049525]
[1625450878485,12.6436434,34603.0,34597.0,0.0049535]
[1625450878585,0.059,34600.0,34597.0,0.0049535]
[1625450878684,0.118,34600.0,34593.0,0.9149]
[1625450878844,5.80094354,34598.0,34593.0,0.9149]
[1625450878934,5.85994354,34598.0,34593.0,0.9149]
[1625450879036,0.5,34597.0,34594.0,0.00495358]
[1625450879234,0.618,34597.0,34594.0,0.00495358]
[1625450879435,4.08999727,34595.0,34594.0,0.00495358]
[1625450879535,5.03087727,34595.0,34594.0,0.00495358]
[1625450881042,5.75260359,34595.0,34594.0,0.00495358]
[1625450882495,5.75260359,34595.0,34584.0,0.24057544]
[1625450882595,5.75260359,34595.0,34582.0,1.19192913]
[1625450882945,5.75260359,34595.0,34583.0,0.00494789]
[1625450883046,1.1927138,34585.0,34583.0,0.00494789]
[1625450883145,0.72172632,34584.0,34583.0,0.00494789]
[1625450883246,5.27122632,34584.0,34583.0,0.00494789]
[1625450883400,6.51962865,34584.0,34583.0,0.00494789]
[1625450883499,6.51962865,34584.0,34582.0,0.00494814]
[1625450884601,7.01962865,34584.0,34582.0,0.00494814]
[1625450884701,6.51962865,34584.0,34582.0,0.00494814]
[1625450884903,1.18847584,34583.0,34582.0,0.00494814]
[1625450885003,1.24747584,34583.0,34582.0,0.00494814]
[1625450885102,1.48805128,34583.0,34578.0,0.00494946]
[1625450885305,1.48805128,34583.0,34582.0,0.00494944]
[1625450885402,1.65694157,34583.0,34582.0,0.00494944]
[1625450885602,1.65694157,34583.0,34578.0,0.00494944]
[1625450885852,1.18765156,34581.0,34578.0,0.00494944]
[1625450885952,1.24665156,34581.0,34578.0,0.00494944]
[1625450886303,0.059,34581.0,34578.0,0.00494944]
[1625450887152,0.24057544,34579.0,34578.0,0.00494944]
[1625450887252,0.29957544,34579.0,34578.0,0.00494944]
[1625450887957,0.29957544,34579.0,34577.0,0.24057544]
[1625450889110,0.24057544,34578.0,34577.0,0.24057544]
[1625450889209,0.53448544,34578.0,34577.0,0.24057544]
[1625450889664,0.53448544,34578.0,34577.0,0.24552509]
[1625450892821,0.53448544,34578.0,34577.0,0.24057544]
[1625450892921,0.47548544,34578.0,34577.0,0.24057544]
[1625450893123,0.47548544,34578.0,34577.0,0.24553223]
[1625450893624,0.47548544,34578.0,34577.0,0.24057544]
[1625450893724,0.53448544,34578.0,34577.0,0.24057544]
[1625450895427,0.47548544,34578.0,34577.0,0.24057544]
[1625450895778,0.53448544,34578.0,34577.0,0.24057544]
[1625450896830,0.53448544,34578.0,34577.0,0.24553237]
[1625450897080,0.47548544,34578.0,34577.0,0.24553237]
[1625450897381,0.53448544,34578.0,34577.0,0.24553237]
[1625450897481,0.53448544,34578.0,34577.0,0.24057544]
[1625450897631,0.47548544,34578.0,34577.0,0.24057544]
[1625450897982,0.47548544,34578.0,34577.0,0.24553236]
[1625450898232,0.47548544,34578.0,34577.0,0.24057544]
[1625450898635,0.53448544,34578.0,34577.0,0.24057544]
[1625450898734,0.53448544,34578.0,34573.0,0.9482]
[1625450898834,0.59348544,34578.0,34573.0,0.9482]
[1625450899235,0.48115088,34574.0,34573.0,0.9482]
[1625450899685,0.54015088,34574.0,34573.0,0.9482]
[1625450899788,0.59915088,34574.0,34573.0,0.9482]
[1625450904705,0.59915088,34574.0,34573.0,0.95315409]
[1625450904803,5.25535088,34574.0,34573.0,0.95315409]
[1625450907659,5.75535088,34574.0,34573.0,0.00495409]
[1625450907757,5.75535088,34574.0,34562.0,0.9565]
[1625450907959,5.75535088,34574.0,34561.0,0.24057544]
[1625450908059,0.5,34571.0,34561.0,0.24057544]
[1625450908157,0.81744,34571.0,34561.0,0.24057544]
[1625450908259,0.81744,34571.0,34562.0,0.00494841]
[1625450908559,1.48694311,34571.0,34562.0,0.00494841]
[1625450909211,0.48115088,34563.0,34562.0,0.00494841]
[1625450909310,0.79221088,34563.0,34562.0,0.00494841]
[1625450909861,5.49081088,34563.0,34562.0,0.00494841]
[1625450911516,0.79221088,34563.0,34562.0,0.00494841]
[1625450912467,0.54015088,34563.0,34562.0,0.00494841]
[1625450912819,0.48115088,34563.0,34562.0,0.00494841]
[1625450913018,0.48115088,34563.0,34562.0,0.06394841]
[1625450913467,0.48115088,34563.0,34562.0,0.00494841]
[1625450913671,0.48115088,34563.0,34562.0,0.06394841]
[1625450914119,0.48115088,34563.0,34562.0,0.00494841]
[1625450915073,0.48115088,34563.0,34562.0,0.06394841]
[1625450915273,0.24057544,34563.0,34562.0,0.30452385]
[1625450915373,0.24057544,34563.0,34562.0,0.39502385]
[1625450915575,0.24057544,34563.0,34562.0,0.40359014]
[1625450917530,0.24057544,34568.0,34562.0,0.40359014]
[1625450917938,0.24057544,34568.0,34563.0,0.01351334]
[1625450918028,0.24057544,34568.0,34563.0,0.29296334]
[1625450918130,0.24057544,34568.0,34563.0,0.35196334]
[1625450918428,0.24057544,34568.0,34564.0,0.00494785]
[1625450918528,0.24057544,34568.0,34564.0,0.07251343]
[1625450918628,0.24057544,34568.0,34564.0,0.13151343]
[1625450919030,0.24057544,34568.0,34565.0,0.01351355]
[1625450919131,0.24057544,34568.0,34565.0,0.13151355]
[1625450919329,0.24057544,34568.0,34567.0,0.48115088]
[1625450919431,0.24057544,34568.0,34567.0,0.54015088]
[1625450919631,0.24057544,34574.0,34567.0,0.54015088]
[1625450919729,0.24057544,34574.0,34567.0,0.59915088]
[1625450919931,0.24057544,34574.0,34568.0,0.01351258]
[1625450920029,0.24057544,34574.0,34568.0,0.13151258]
[1625450920481,0.24057544,34574.0,34569.0,0.01351243]
[1625450920582,0.24057544,34574.0,34569.0,0.13151243]
[1625450921080,0.24057544,34574.0,34570.0,0.0725128]
[1625450921181,0.24057544,34574.0,34570.0,0.3419128]
[1625450921282,0.24057544,34574.0,34573.0,0.24057544]
[1625450921634,0.24057544,34574.0,34573.0,0.24552282]
[1625450922033,0.24057544,34574.0,34573.0,0.27702282]
[1625450922482,0.24057544,34574.0,34573.0,0.33602282]
[1625450922884,0.24057544,34574.0,34573.0,0.39502282]
[1625450923135,0.24057544,34574.0,34573.0,0.40358704]
[1625450924388,0.24057544,34574.0,34573.0,0.34458704]
[1625450924589,0.24057544,34574.0,34573.0,0.40358704]
[1625450924689,0.24057544,34574.0,34573.0,0.28558704]
[1625450924790,0.24057544,34574.0,34573.0,0.27702282]
[1625450925289,5.23527544,34574.0,34573.0,0.27702282]
[1625450925691,0.24057544,34574.0,34573.0,0.27702282]
[1625450926394,0.24057544,34574.0,34573.0,0.03644738]
[1625450926746,0.55456544,34574.0,34573.0,0.03644738]
[1625450927344,0.79514088,34574.0,34573.0,0.03644738]
[1625450927999,0.73614088,34574.0,34573.0,0.03644738]
[1625450928649,0.85414088,34574.0,34573.0,0.03644738]
[1625450929153,0.85414088,34574.0,34573.0,0.00494738]
[1625450929305,3.05190621,34574.0,34573.0,0.00494738]
[1625450929503,3.05190621,34574.0,34570.0,0.00494795]
[1625450929805,3.05190621,34574.0,34573.0,0.00494809]
[1625450929906,2.0371084,34574.0,34573.0,0.00494809]
[1625450930005,2.0371084,34574.0,34571.0,0.00494815]
[1625450930254,2.0371084,34574.0,34568.0,0.24057544]
[1625450930255,2.0371084,34574.0,34569.0,0.00494818]
[1625450930456,1.18316767,34572.0,34569.0,0.00494818]
[1625450930558,1.24216767,34572.0,34569.0,0.00494818]
[1625450930657,1.30116767,34572.0,34569.0,0.00494818]
[1625450931107,0.50715654,34570.0,34569.0,0.00494818]
[1625450931207,0.56615654,34570.0,34569.0,0.00494818]
[1625450931310,0.62515654,34570.0,34569.0,0.00494818]
[1625450931408,0.86573198,34570.0,34569.0,0.00494818]
[1625450931559,1.54196044,34570.0,34569.0,0.00494818]
[1625450932261,0.86573198,34570.0,34569.0,0.00494818]
[1625450932711,0.80673198,34570.0,34569.0,0.00494818]
[1625450932811,2.49920965,34570.0,34569.0,0.00494818]
[1625450932910,2.44020965,34570.0,34569.0,0.00494818]
[1625450933712,1.42475689,34570.0,34569.0,0.00494818]
[1625450934672,0.24057544,34570.0,34569.0,0.00494818]
[1625450935219,0.74939263,34570.0,34569.0,0.00494818]
[1625450935719,0.80839263,34570.0,34569.0,0.00494818]
[1625450936923,2.50778928,34570.0,34569.0,0.51599102]
[1625450938926,2.50778928,34570.0,34569.0,1.19773161]
[1625450939576,2.20821384,34570.0,34569.0,1.56976161]
[1625450939680,2.20821384,34570.0,34569.0,1.62876161]
[1625450939681,0.20581384,34570.0,34569.0,1.62876161]
[1625450939876,0.00421384,34570.0,34569.0,1.62876161]
[1625450939979,0.51139426,34576.0,34569.0,5.20166662]
[1625450940077,0.51139426,34576.0,34569.0,5.18449338]
[1625450940477,0.51139426,34576.0,34570.0,0.02383296]
[1625450940577,0.51139426,34576.0,34570.0,0.08283296]
[1625450940678,0.51139426,34576.0,34570.0,0.14183296]
[1625450940780,1.19289941,34582.0,34576.0,3.8688]
[1625450940877,1.19289941,34582.0,34576.0,4.10626]
[1625450940977,1.19289941,34582.0,34576.0,4.22426]
[1625450941278,1.19289941,34582.0,34577.0,0.01350735]
[1625450941377,1.19289941,34582.0,34581.0,0.48115088]
[1625450941481,1.43394721,34584.0,34581.0,0.48115088]
[1625450941577,1.43394721,34584.0,34581.0,0.59915088]
[1625450941878,1.43394721,34584.0,34582.0,0.06394355]
[1625450942080,1.43394721,34584.0,34582.0,0.12294355]
[1625450942328,1.43394721,34584.0,34583.0,0.00494341]
[1625450942430,1.43394721,34584.0,34583.0,0.29752341]
[1625450942530,0.24057544,34584.0,34583.0,0.29752341]
[1625450942982,1.43393297,34584.0,34583.0,0.29752341]
[1625450944085,1.43393297,34584.0,34583.0,0.23852341]
[1625450944185,1.43393297,34584.0,34583.0,0.00494341]
[1625450944186,2.79797693,34584.0,34583.0,0.00494341]
[1625450944485,2.79797693,34584.0,34582.0,0.0049442]
[1625450944886,2.85697693,34584.0,34582.0,0.0049442]
[1625450945191,2.55755691,34583.0,34582.0,0.0049442]
[1625450945388,2.61655691,34583.0,34582.0,0.0049442]
[1625450945891,2.67555691,34583.0,34582.0,0.0049442]
[1625450946396,4.21017902,34583.0,34582.0,0.0049442]
[1625450947193,4.21017902,34583.0,34579.0,0.00494558]
[1625450947296,4.71017902,34583.0,34579.0,0.00494558]
[1625450947494,4.71017902,34583.0,34568.0,1.60188255]
[1625450947495,0.48115088,34580.0,34571.0,0.00494585]
[1625450947594,0.86548088,34580.0,34571.0,0.00494585]
[1625450947695,0.86548088,34580.0,34568.0,1.43271862]
[1625450947945,0.86548088,34580.0,34569.0,0.00494605]
[1625450948047,2.55840602,34572.0,34569.0,0.00494605]
[1625450948146,2.83433602,34572.0,34569.0,0.00494605]
[1625450948245,2.89333602,34572.0,34569.0,0.00494605]
[1625450948496,1.1939356,34570.0,34569.0,0.00494605]
[1625450948598,1.2529356,34570.0,34569.0,0.00494605]
[1625450949498,1.73408648,34570.0,34569.0,0.00494605]
[1625450949753,1.79308648,34570.0,34569.0,0.00494605]
[1625450950402,1.79308648,34570.0,34567.0,0.00494611]
[1625450950602,1.79308648,34570.0,34569.0,0.00494614]
[1625450950904,0.59915088,34570.0,34569.0,0.00494614]
[1625450951004,0.59915088,34570.0,34567.0,0.00494614]
[1625450951203,0.59915088,34570.0,34569.0,0.0049462]
[1625450951404,1.963382,34570.0,34569.0,0.0049462]
[1625450951504,1.963382,34570.0,34567.0,0.00494624]
[1625450951954,1.1937524,34568.0,34567.0,0.00494624]
[1625450952055,1.2527524,34568.0,34567.0,0.00494624]
[1625450952365,2.61665815,34568.0,34567.0,0.00494624]
[1625450953512,2.85723359,34568.0,34567.0,0.00494624]
[1625450953667,2.85723359,34568.0,34566.0,0.00494589]
[1625450954267,2.55556844,34567.0,34566.0,0.00494589]
[1625450957020,1.19260996,34567.0,34566.0,0.00494589]
[1625450958622,0.24057544,34568.0,34566.0,1.19851646]
[1625450958719,0.24057544,34568.0,34566.0,1.39804646]
[1625450958969,0.24057544,34568.0,34567.0,0.0049444]
[1625450959070,0.24057544,34568.0,34567.0,0.0639444]
[1625450959471,0.24057544,34568.0,34567.0,0.0049444]
[1625450959571,0.24057544,34568.0,34567.0,1.19875673]
[1625450960021,0.24057544,34568.0,34567.0,0.0049444]
[1625450960871,0.24057544,34568.0,34567.0,1.19849827]
[1625450961272,0.24057544,34568.0,34567.0,0.0049444]
[1625450961621,0.24057544,34568.0,34567.0,1.19856879]
[1625450961972,0.24057544,34568.0,34567.0,0.0049444]
[1625450962471,0.24057544,34568.0,34567.0,0.0315]
[1625450962873,0.24057544,34568.0,34567.0,1.22474209]
[1625450962974,0.24057544,34568.0,34567.0,1.53796172]
[1625450964580,0.24057544,34568.0,34567.0,1.52939637]
[1625450964880,0.24057544,34568.0,34567.0,1.53796182]
[1625450965131,0.24057544,34568.0,34567.0,1.52939637]
[1625450965429,0.24057544,34568.0,34567.0,1.53796179]
[1625450966431,0.24057544,34568.0,34567.0,1.52939637]
[1625450966986,0.47566544,34568.0,34567.0,1.22968637]
[1625450967083,0.53466544,34568.0,34567.0,1.22968637]
[1625450967633,1.72879367,34568.0,34567.0,0.03644428]
[1625450967734,1.72879367,34568.0,34567.0,0.00494428]
[1625450968436,1.78779367,34568.0,34567.0,0.00494428]
[1625450968837,6.97129367,34568.0,34567.0,0.00494428]
[1625450968938,8.33456629,34568.0,34567.0,0.00494428]
[1625450969189,3.15106629,34568.0,34567.0,0.00494428]
[1625450969638,3.15106629,34568.0,34566.0,0.00494451]
[1625450969938,3.15106629,34568.0,34567.0,0.0049446]
[1625450970138,0.59366544,34568.0,34567.0,0.0049446]
[1625450970241,0.59366544,34568.0,34566.0,0.0049446]
[1625450970438,0.59366544,34568.0,34567.0,0.0049446]
[1625450970539,2.1275762,34568.0,34567.0,0.0049446]
[1625450970691,2.1275762,34568.0,34566.0,0.00494463]
[1625450970990,4.17264245,34568.0,34566.0,0.00494463]
[1625450971493,3.57868103,34567.0,34566.0,0.00494463]
[1625450971593,3.81925647,34567.0,34566.0,0.00494463]
[1625450971696,3.93725647,34567.0,34566.0,0.00494463]
[1625450971901,4.43725647,34567.0,34566.0,0.00494463]
[1625450972096,4.43725647,34567.0,34561.0,1.02350267]
[1625450972397,4.43725647,34567.0,34561.0,0.81090267]
[1625450972495,4.49625647,34567.0,34561.0,0.81090267]
[1625450972596,4.43725647,34567.0,34562.0,0.00493972]
[1625450972700,5.97006637,34567.0,34562.0,0.00493972]
[1625450972798,0.059,34562.0,34560.0,1.02364963]
[1625450972896,0.118,34562.0,34560.0,1.02364963]
[1625450972999,0.5,34561.0,34560.0,1.02364963]
[1625450973097,0.91712,34561.0,34560.0,1.02364963]
[1625450973397,0.91712,34561.0,34560.0,1.02859348]
[1625450973600,5.47076209,34561.0,34560.0,0.00494385]
[1625450973700,5.47076209,34561.0,34547.0,2.1932694]
[1625450974200,4.041,34553.0,34548.0,0.00493742]
[1625450974301,1.18750887,34552.0,34548.0,0.00493742]
[1625450974601,1.24650887,34552.0,34548.0,0.00493742]
[1625450975605,0.72172632,34549.0,34548.0,0.00493742]
[1625450975705,0.78072632,34549.0,34548.0,0.00493742]
[1625450975807,0.72172632,34549.0,34548.0,0.00493742]
[1625450977258,0.72172632,34549.0,34548.0,1.19713485]
[1625450977708,0.72172632,34549.0,34548.0,1.22863485]
[1625450978010,0.72172632,34549.0,34548.0,2.59111499]
[1625450978609,0.72172632,34549.0,34548.0,1.22863485]
[1625450979762,0.72172632,34549.0,34548.0,2.59060532]
[1625450981065,0.72172632,34549.0,34548.0,1.22863485]
[1625450982624,1.08135632,34549.0,34548.0,1.19713485]
[1625450982723,1.02235632,34549.0,34548.0,1.19713485]
[1625450982822,1.14035632,34549.0,34548.0,1.19713485]
[1625450982925,1.64035632,34549.0,34548.0,1.19713485]
[1625450983022,1.64035632,34549.0,34548.0,0.00493742]
[1625450983476,1.64035632,34549.0,34547.0,0.26040313]
[1625450983575,4.18674227,34549.0,34537.0,1.19165671]
[1625450983674,0.72172632,34538.0,34537.0,1.19165671]
[1625450983776,1.10021632,34538.0,34537.0,1.19165671]
[1625450984025,1.10021632,34538.0,34537.0,1.19659172]
[1625450984126,5.65791632,34538.0,34537.0,1.19659172]
[1625450984331,5.65791632,34538.0,34537.0,0.00493501]
[1625450984828,5.65791632,34538.0,34536.0,0.00493529]
[1625450985228,1.10021632,34538.0,34536.0,0.00493529]
[1625450985781,1.10021632,34538.0,34537.0,0.17009374]
[1625450985880,0.83972632,34538.0,34537.0,0.17009374]
[1625450985979,0.83972632,34538.0,34537.0,0.47618374]
[1625450986079,0.78072632,34538.0,34537.0,0.47618374]
[1625450986182,0.78072632,34538.0,34537.0,0.48111875]
[1625450986881,0.78072632,34538.0,34537.0,0.31102501]
[1625450986980,0.78072632,34538.0,34537.0,0.00493501]
[1625450987231,0.78072632,34538.0,34536.0,0.00493476]
[1625450987333,0.72172632,34538.0,34536.0,0.00493476]
[1625450988086,0.72172632,34538.0,34536.0,0.03643476]
[1625450988537,0.72172632,34538.0,34537.0,0.00493473]
[1625450988636,0.72172632,34538.0,34537.0,0.30998473]
[1625450989136,0.72172632,34538.0,34537.0,0.34148473]
[1625450989413,0.16963405,34547.0,34537.0,0.34148473]
[1625450989521,0.16963405,34547.0,34537.0,0.45948473]
[1625450989639,0.16963405,34547.0,34546.0,0.72172632]
[1625450989739,0.16963405,34547.0,34546.0,0.96756632]
[1625450989840,0.16978922,34550.0,34546.0,0.96756632]
[1625450989938,0.16978922,34550.0,34546.0,0.97250035]
[1625450990140,0.16978922,34550.0,34547.0,0.00493387]
[1625450990439,0.16980282,34552.0,34547.0,0.00493387]
[1625450990892,0.16980282,34552.0,34547.0,0.03643387]
[1625450991092,0.16990915,34554.0,34547.0,0.20616134]
[1625450991297,0.28790915,34554.0,34547.0,0.20616134]
[1625450991393,0.28790915,34554.0,34548.0,0.00493377]
[1625450991693,0.28790915,34554.0,34553.0,0.72172632]
[1625450991794,0.28790915,34554.0,34553.0,0.98111632]
[1625450991896,0.118,34554.0,34553.0,0.98111632]
[1625450995051,0.118,34554.0,34553.0,0.98605432]
[1625450995952,0.118,34554.0,34553.0,0.72666432]
[1625450996101,0.118,34554.0,34553.0,0.72172632]
[1625450996905,0.118,34554.0,34553.0,0.72666435]
[1625450997005,0.39372,34554.0,34553.0,0.72666435]
[1625451000066,1.07069131,34554.0,34553.0,0.72666435]
[1625451001722,1.31126675,34554.0,34553.0,0.24551347]
[1625451001821,1.31126675,34554.0,34553.0,0.00493803]
[1625451002022,2.66154217,34554.0,34553.0,0.00493803]
[1625451002221,7.99024217,34554.0,34547.0,0.00493884]
[1625451002674,10.52131399,34554.0,34547.0,0.00493884]
[1625451003325,1.68754956,34548.0,34547.0,0.00493884]
[1625451003422,1.80554956,34548.0,34547.0,0.00493884]
[1625451003723,2.046125,34548.0,34547.0,0.00493884]
[1625451003875,3.22584261,34548.0,34547.0,0.00493884]
[1625451005126,4.57475835,34548.0,34547.0,0.00493884]
[1625451005776,4.81533379,34548.0,34547.0,0.00493884]
[1625451009434,3.46641805,34548.0,34547.0,0.00493884]
[1625451011087,2.28670044,34548.0,34547.0,0.00493884]
[1625451011786,2.28670044,34548.0,34547.0,0.24551428]
[1625451011986,3.46534205,34548.0,34547.0,0.24551428]
[1625451012387,2.28670044,34548.0,34547.0,0.24551428]
[1625451012588,2.28670044,34548.0,34547.0,0.46607428]
[1625451014398,2.22770044,34548.0,34547.0,0.46607428]
[1625451014594,1.74654956,34548.0,34547.0,0.46607428]
[1625451015144,0.73405357,34548.0,34547.0,0.46607428]
[1625451015293,0.67505357,34548.0,34547.0,0.46607428]
[1625451015696,0.67393231,34549.0,34547.0,0.46607428]
[1625451015795,0.67393231,34549.0,34548.0,0.24057544]
[1625451015895,0.79193231,34549.0,34548.0,0.24057544]
[1625451015998,0.79193231,34549.0,34548.0,0.24550989]
[1625451016849,0.118,34549.0,34548.0,0.24550989]
[1625451017750,0.62395592,34549.0,34548.0,0.24550989]
[1625451018253,0.45524777,34549.0,34548.0,0.24550989]
[1625451018652,0.118,34549.0,34548.0,0.24550989]
[1625451019351,0.79285461,34549.0,34548.0,0.24550989]
[1625451019952,0.73385461,34549.0,34548.0,0.57041989]
[1625451020152,0.73385461,34549.0,34548.0,0.60191989]
[1625451020659,0.059,34549.0,34548.0,0.60191989]
[1625451021958,0.059,34549.0,34548.0,0.6869175]
[1625451022460,0.059,34549.0,34548.0,0.8569124]
[1625451024565,0.059,34549.0,34548.0,1.19714167]
[1625451024966,0.059,34549.0,34548.0,0.8569124]
[1625451025466,0.31330913,34549.0,34548.0,0.94239826]
[1625451026018,0.65214901,34549.0,34548.0,0.60191989]
[1625451026319,0.65214901,34549.0,34548.0,0.94243992]
[1625451026831,0.31330913,34549.0,34548.0,1.28296292]
[1625451027281,0.39823358,34549.0,34548.0,2.30553629]
[1625451028233,0.059,34549.0,34548.0,2.30553629]
[1625451029287,0.73764858,34549.0,34548.0,2.30553629]
[1625451029886,1.24673924,34549.0,34548.0,2.81717074]
[1625451030736,1.30573924,34549.0,34548.0,2.81717074]
[1625451031136,2.32402049,34549.0,34548.0,2.81717074]
[1625451034692,3.51170009,34549.0,34548.0,2.81717074]
[1625451034901,3.82217009,34549.0,34548.0,2.81717074]
[1625451035003,3.82217009,34549.0,34548.0,2.49226074]
[1625451035292,3.82217009,34549.0,34548.0,2.46076074]
[1625451035504,5.1783347,34549.0,34548.0,0.24550989]
[1625451035893,5.65948558,34549.0,34548.0,0.24550989]
[1625451036092,7.18378979,34549.0,34548.0,0.24550989]
[1625451037146,7.18378979,34549.0,34541.0,0.25605495]
[1625451037248,7.68378979,34549.0,34541.0,0.25605495]
[1625451037347,9.37786736,34549.0,34539.0,0.59750625]
[1625451037545,9.37786736,34549.0,34542.0,0.00492725]
[1625451037747,9.37786736,34549.0,34540.0,0.00492737]
[1625451037849,4.3465,34541.0,34540.0,0.00492737]
[1625451037947,5.40805632,34541.0,34540.0,0.00492737]
[1625451038048,5.46705632,34541.0,34540.0,0.00492737]
[1625451038149,5.96705632,34541.0,34540.0,0.00492737]
[1625451038353,5.46705632,34541.0,34537.0,0.00492758]
[1625451038447,11.72977106,34541.0,34537.0,0.00492758]
[1625451038547,11.72977106,34541.0,34540.0,0.00492815]
[1625451038796,11.72977106,34541.0,34536.0,0.00492829]
[1625451038896,7.38327106,34541.0,34536.0,0.00492829]
[1625451039499,4.73880957,34537.0,34536.0,0.00492829]
[1625451039596,4.85680957,34537.0,34536.0,0.00492829]
[1625451039898,4.85680957,34537.0,34535.0,0.00492848]
[1625451039999,5.09738501,34537.0,34535.0,0.00492848]
[1625451040498,0.5,34536.0,34535.0,0.00492848]
[1625451040598,0.618,34536.0,34535.0,0.00492848]